Cogmind - Beta 10.2 @@@ ROGUE MODE // 2021.01.05 @ 08:27:39 Player: Wyvric Result: Destroyed by D-53 Grenadier with Mini Grenade Launcher Performance ------------- Evolutions (0) 0 Regions Visited (4) 800 Robots Destroyed (16) 80 Value Destroyed (398) 398 Prototype IDs (23) 460 Alien Tech Used (0) 0 Bonus (303) 303 TOTAL SCORE: 2041 Bonus ------- Follower Combat Kills 14 Aligned with FarCom 300 Friendly Fire -11 Cogmind --------- Core Integrity 0/250 Matter 277/300 Energy 265/265 System Corruption 0% Temperature Cool (0) Movement Treading (200) Ox2 Location -9/Mines Parts ------- > --- POWER (1) -------- Improved Ion Engine > --- PROPULSION (2) --- Light Treads > --- UTILITY (2) ------ Large Storage Unit Large Storage Unit > --- WEAPON (2) ------- Beam Cannon > --- INVENTORY (16) --- Nuclear Core Reinforced Deuterium Engine Fission Core Large Storage Unit Large Storage Unit Superbattery (2000) High-capacity Matter Pod (200) Visual Processing Unit Light Armor Plating Supersonic Drone Bay (1/1) XL Autogun Array Rocket Launcher Peak State ------------ > --- POWER ------------ Improved Ion Engine > --- PROPULSION ------- Light Treads Light Treads > --- UTILITY ---------- Large Storage Unit Large Storage Unit > --- WEAPON ----------- Beam Cannon Rocket Launcher > --- INVENTORY -------- Nuclear Core Reinforced Deuterium Engine Fission Core Light Treads Large Storage Unit Large Storage Unit Superbattery High-capacity Matter Pod Visual Processing Unit Light Armor Plating Supersonic Drone Bay Assault Rifle XL Autogun Array [Rating: 16] Favorites ----------- Power Improved Ion Engine Engine Improved Ion Engine Power Core Light Nuclear Core Propulsion Light Treads Treads Light Treads Leg Aluminum Leg Utility Large Storage Unit Storage Large Storage Unit Protection Light Armor Plating Weapon Assault Rifle Energy Gun EM Pulse Gun Energy Cannon Beam Cannon Ballistic Gun Assault Rifle Launcher Rocket Launcher Build | -11 -10 -10 -10 -9 ------- Run | Scr Mat Min Exi Min Slots Evolved . | . . . . . Power . | . . . . . Propulsion . | . . . . . Utility . | . . . . . Weapon . | . . . . . Parts Attached 27 | 6 9 6 3 3 Power 6 | 1 3 2 . . Engine 5 | 1 2 2 . . Core 1 | . 1 . . . Reactor . | . . . . . Propulsion 6 | 2 1 2 . 1 Treads 3 | . . 2 . 1 Leg 3 | 2 1 . . . Wheel . | . . . . . Hover . | . . . . . Flight . | . . . . . Utility 8 | 1 3 1 3 . Device . | . . . . . Storage 5 | 1 1 . 3 . Processor . | . . . . . Hackware . | . . . . . Protection 3 | . 2 1 . . Artifact . | . . . . . Weapon 7 | 2 2 1 . 2 Energy Gun 2 | 1 1 . . . Energy Cannon 1 | . . 1 . . Ballistic Gun 3 | 1 1 . . 1 Ballistic Cannon . | . . . . . Launcher 1 | . . . . 1 Special Weapon . | . . . . . Impact Weapon . | . . . . . Slashing Weapon . | . . . . . Piercing Weapon . | . . . . . Special Melee Weapon . | . . . . . Unidentified Prototypes . | . . . . . Parts Lost 5 | . 1 2 . 2 Power . | . . . . . Propulsion 2 | . . 1 . 1 Utility . | . . . . . Weapon 3 | . 1 1 . 1 Highest Loss Streak 2 | . 1 2 . 2 Average Slot Usage (%) 98 | . 99 95 100 98 Engine 11 | . 9 9 14 14 Core 2 | . 4 4 . . Treads 16 | . . 14 28 28 Leg 11 | . 28 13 . . Storage 18 | . 14 14 26 28 Protection 9 | . 13 14 1 . Energy Gun 3 | . 12 . . . Energy Cannon 6 | . . 3 14 14 Ballistic Gun 16 | . 15 20 14 9 Naked Turns . | . . . . . Heaviest Build 46 | 11 20 23 44 46 Greatest Support 40 | 20 20 40 40 40 Greatest Overweight (x) 2 | . . . 1 2 Average Overweight (x) . | . . . . 1 Largest Inventory Capacity 16 | 6 8 8 16 16 Average Capacity 10 | 5 7 8 14 16 Most Carried 16 | 6 8 8 16 16 Average Carried 9 | 3 7 7 12 15 Final Capacity 16 | 6 8 8 16 16 Final Carried 16 | 6 8 8 16 15 Class Distribution -------------------- 100% | Mutant Dominant Class ---------------- Mutant | -10/Materials Mutant | -10/Mines Mutant | -10/Exiles Mutant | -9/Mines Resources | -11 -10 -10 -10 -9 ----------- Run | Scr Mat Min Exi Min Matter Collected 644 | 189 195 230 20 10 Remotely . | . . . . . Salvage Created 454 | . 255 199 . . Parts 36 | . 23 13 . . Haulers Intercepted . | . . . . . Recyclers Shooed . | . . . . . Parts Field Recycled . | . . . . . Retrieved Matter . | . . . . . Parts Self-Destructed . | . . . . . Prevented . | . . . . . Kills | -11 -10 -10 -10 -9 ------- Run | Scr Mat Min Exi Min Combat Hostiles Destroyed 14 | . 9 5 . . Guns 14 | . 9 5 . . Classes Destroyed 4 | . 3 1 . . Watcher 2 | . 2 . . . Swarmer 7 | . 6 1 . . Grunt 5 | . 3 2 . . Sentry 2 | . . 2 . . Best Kill Streak 4 | . 4 2 . . Combat Bots Only 3 | . 3 2 . . Max Kills in Single Turn 1 | . 1 1 . . Gunslinging . | . . . . . Exploded . | . . . . . Melee . | . . . . . Uniques/NPCs Destroyed . | . . . . . Combat | -11 -10 -10 -10 -9 -------- Run | Scr Mat Min Exi Min Damage Taken 1433 | . 426 395 . 612 Core 265 | . 45 51 . 169 Absorbed by Shields . | . . . . . Core Remaining (%) 100 | 100 . . . . Volleys Fired 52 | . 28 22 . 2 Largest 2 | . 2 2 . 2 Hottest 80 | . 70 40 . 80 Shots Fired 102 | . 56 43 . 3 Gun 100 | . 56 43 . 1 Cannon 2 | . . . . 2 Launcher . | . . . . . Special . | . . . . . Kinetic 74 | . 30 43 . 1 Thermal 7 | . 5 . . 2 Explosive . | . . . . . Electromagnetic 21 | . 21 . . . Robot Hit Streak 10 | . 6 10 . 4 Robot Miss Streak 8 | . 8 8 . 2 Penetration Max . | . . . . . Secondary Targets 3 | . 2 1 . . Max Gunslinging Chain 1 | . 1 1 . . Shots Hit Robots 58 | . 33 24 . 1 Core Hits 27 | . 16 10 . 1 Critical Hits 1 | . . 1 . . Critical Kills 1 | . . 1 . . Critical Parts Destroyed . | . . . . . Melee Attacks . | . . . . . Impact . | . . . . . Slashing . | . . . . . Piercing . | . . . . . Sneak Attacks . | . . . . . Combat Hostiles . | . . . . . Follow-up Attacks . | . . . . . Damage Inflicted 777 | . 439 328 . 10 Guns 763 | . 439 314 . 10 Cannons . | . . . . . Explosions . | . . . . . Melee . | . . . . . Ramming 14 | . . 14 . . Kinetic 540 | . 216 314 . 10 Thermal 63 | . 63 . . . Explosive . | . . . . . Electromagnetic 160 | . 160 . . . Impact . | . . . . . Slashing . | . . . . . Piercing . | . . . . . Highest Corruption . | . . . . . Average Corruption . | . . . . . Corruption Purged . | . . . . . Overload Shots . | . . . . . Overflow Damage . | . . . . . Projectiles . | . . . . . Explosions . | . . . . . Melee . | . . . . . Knockbacks . | . . . . . Impact . | . . . . . Kinetic . | . . . . . Secondary . | . . . . . Self-Inflicted Damage . | . . . . . Shots . | . . . . . Rammed . | . . . . . Targets Rammed 1 | . . 1 . . Kicked 1 | . . 1 . . Crushed . | . . . . . Highest Temperature 178 | . 178 12 . 41 Average Temperature 39 | . 49 4 . 18 Received Heat Transfer 245 | . 96 129 . 20 Siege Activations . | . . . . . Robots Corrupted . | . . . . . Combat Hostiles . | . . . . . Parts Fried . | . . . . . Impact Corruptions . | . . . . . Robots Melted . | . . . . . Combat Hostiles . | . . . . . Parts Melted . | . . . . . Heat Transferred 185 | . 185 . . . Parts Sabotaged . | . . . . . Parts Stolen . | . . . . . Parts Stripped . | . . . . . Power Chain Reactions . | . . . . . Missiles Intercepted . | . . . . . Alert | -11 -10 -10 -10 -9 ------- Run | Scr Mat Min Exi Min Peak Influence 302 | . 302 163 . 15 Initial 58 | . . 58 . . Average 80 | . 127 55 . 1 Maximum Alert Level 1 | . 1 . . . Low Security (%) 84 | 100 62 100 . 100 Level 1 15 | . 37 . . . Level 2 . | . . . . . Level 3 . | . . . . . Level 4 . | . . . . . Level 5 . | . . . . . High Security . | . . . . . Max Security . | . . . . . Squads Dispatched . | . . . . . Investigation . | . . . . . Extermination . | . . . . . Reinforcement . | . . . . . Assault . | . . . . . Garrison . | . . . . . Intercept . | . . . . . Construction Impeded . | . . . . . Haulers Reinforced . | . . . . . Stealth | -11 -10 -10 -10 -9 --------- Run | Scr Mat Min Exi Min Distress Signals 1 | . 1 . . . Communications Jammed . | . . . . . Distress Signals . | . . . . . Times Spotted 30 | . 15 7 . 8 Peak Tracking Total 7 | . 4 3 . 7 Tactical Retreats . | . . . . . Traps | -11 -10 -10 -10 -9 ------- Run | Scr Mat Min Exi Min Traps Triggered 1 | . 1 . . . Indirectly . | . . . . . Trap Hack Attempts . | . . . . . Triggered . | . . . . . Disarmed . | . . . . . Reprogrammed . | . . . . . Reused . | . . . . . Traps Extracted . | . . . . . Installed . | . . . . . Triggered . | . . . . . Machines | -11 -10 -10 -10 -9 ---------- Run | Scr Mat Min Exi Min Machines Disabled 1 | . . 1 . . Max in Single Turn . | . . . . . Machines Sabotaged . | . . . . . Garrisons Compromised . | . . . . . Overloaded Fab Kills . | . . . . . Fab Network Shutdowns . | . . . . . Hacking | -11 -10 -10 -10 -9 --------- Run | Scr Mat Min Exi Min Machines Accessed 8 | . 7 . 1 . Terminals 7 | . 7 . . . Fabricators . | . . . . . Repair Stations . | . . . . . Recycling Units . | . . . . . Scanalyzers . | . . . . . Garrison Access . | . . . . . Total Hacks 18 | . 17 . 1 . Successful 9 | . 8 . 1 . Failed 9 | . 9 . . . Catastrophic 3 | . 3 . . . Database Lockouts . | . . . . . Manual 13 | . 12 . 1 . Terminals 17 | . 17 . . . Fabricators . | . . . . . Repair Stations . | . . . . . Recycling Units . | . . . . . Scanalyzers . | . . . . . Garrison Access . | . . . . . Terminal Hacks 6 | . 5 . 1 . Part Schematic 1 | . 1 . . . Unreport Threat 1 | . 1 . . . Registered Components 1 | . 1 . . . Zone Layout 2 | . 2 . . . EX-Prototype ID Bank 1 | . . . 1 . Fabricator Hacks . | . . . . . Repair Station Hacks . | . . . . . Recycling Unit Hacks . | . . . . . Scanalyzer . | . . . . . Garrison Access Hacks . | . . . . . Unauthorized Hacks 3 | . 3 . . . Terminals 3 | . 3 . . . Track 3 | . 3 . . . Fabricators . | . . . . . Repair Stations . | . . . . . Recycling Units . | . . . . . Scanalyzers . | . . . . . Garrison Access . | . . . . . Data Cores Recovered . | . . . . . Used . | . . . . . Hacking Detections 7 | . 7 . . . Full Trace Events . | . . . . . Feedback Events . | . . . . . Feedback Blocked . | . . . . . Robot Schematics Acquired . | . . . . . Robots Built . | . . . . . Matter . | . . . . . Time . | . . . . . Total Robot Build Rating . | . . . . . Part Schematics Acquired 1 | . 1 . . . Parts Built . | . . . . . Matter . | . . . . . Time . | . . . . . Total Part Build Rating . | . . . . . Parts Repaired . | . . . . . Time . | . . . . . Parts Recycled . | . . . . . Recycled Matter . | . . . . . Retrieved Matter . | . . . . . Retrieved Components . | . . . . . Parts Scanalyzed . | . . . . . Part Schematics Acquired . | . . . . . Parts Damaged . | . . . . . Bothacking | -11 -10 -10 -10 -9 ------------ Run | Scr Mat Min Exi Min Used RIF Installer . | . . . . . Robots Hacked . | . . . . . Non-combat . | . . . . . Combat . | . . . . . Robot Hacks Applied . | . . . . . Relay Couplers Released . | . . . . . Robots Rewired . | . . . . . Allies Hacked . | . . . . . Hacks Repelled . | . . . . . Allies | -11 -10 -10 -10 -9 -------- Run | Scr Mat Min Exi Min Total Allies 3 | . . 3 . . Largest Group 3 | . . 3 . . Highest-Rated Group 40 | . . 40 . . Highest-Rated Ally 16 | . . 16 . . Total Orders . | . . . . . Ally Attacks 22 | . . 22 . . Total Damage 222 | . . 222 . . Kills 2 | . . 2 . . Allies Corrupted . | . . . . . Allies Melted . | . . . . . Intel | -11 -10 -10 -10 -9 ------- Run | Scr Mat Min Exi Min Robot Analysis Total . | . . . . . Derelict Logs Recovered 2 | . . 2 . . Drone Launches . | . . . . . Drone Recoveries . | . . . . . Exploration | -11 -10 -10 -10 -9 ------------- Run | Scr Mat Min Exi Min Turns Passed 3144 | 69 826 1059 1102 88 Spaces Moved 1954 | 50 581 669 610 44 Core 7 | 7 . . . . Treads 993 | . . 339 610 44 Legs 954 | 43 581 330 . . Wheels . | . . . . . Hover . | . . . . . Flight . | . . . . . Fastest Speed 50 | 50 120 120 160 180 Average Speed 145 | 110 120 140 176 180 Slowest Speed 200 | 120 120 160 180 200 Overloaded Moves . | . . . . . Propulsion Burnouts . | . . . . . Robots Hopped . | . . . . . Cave-ins Triggered . | . . . . . Exploration Rate (%) 59 | 4 98 99 80 16 Regions Visited 4 Branch Regions 3 Pre-discovered Areas . | . . . . . Known Exits Taken . | . . . . . Unknown Exits Taken 4 | 1 1 1 1 . Scrap Searched 3 | . . 2 . 1 Spaces Dug . | . . . . . Terrain Destroyed . | . . . . . Melee . | . . . . . Projectile . | . . . . . AOE . | . . . . . Terrain Rammed . | . . . . . Walls Destroyed . | . . . . . Machines Disabled . | . . . . . Actions | -11 -10 -10 -10 -9 --------- Run | Scr Mat Min Exi Min Total 2151 | 61 658 747 636 49 Wait 76 | . 24 43 9 . Move 1950 | 49 580 668 609 44 Hop . | . . . . . Pick Up 25 | 6 7 3 9 . Fast Attach 12 | 6 4 2 . . Attach 5 | . 1 3 . 1 Detach . | . . . . . Swap 10 | . 4 1 3 2 Drop 20 | . 10 4 6 . Fire 52 | . 28 22 . 2 Melee . | . . . . . Ram . | . . . . . Kick 1 | . . 1 . . Crush . | . . . . . Escape Stasis . | . . . . . Rewire . | . . . . . Trap . | . . . . . Miscellaneous . | . . . . . Route ------- -11/Scrapyard -10/Materials (discovered 5 exits: [*Mat x3] / [*Min x2]) -10/Mines (discovered 3 exits: [*Mat x2] / *Exi) -10/Exiles (discovered 2 exits: [*Min x2]) -9/Mines History --------- Turn | Location | Event 4 | -11/Scrapyard | Discovered new exit (range 15) 70 | -11/Scrapyard | Entered Materials 73 | -10/Materials | Discovered new exit (range 16) 214 | -10/Materials | Discovered new exit (range 20) 315 | -10/Materials | Build established: Mutant 396 | -10/Materials | Discovered new exit (range 11) 421 | -10/Materials | Discovered new exit (range 10) 708 | -10/Materials | Discovered new exit (range 13) 896 | -10/Materials | Entered Mines 899 | -10/Mines | Assisted by bots powering up and referring to "LRC-V3" 1050 | -10/Mines | Deemed a non-threat by the Exiles lab entrance 1315 | -10/Mines | Learned 2 Materials zone layouts 1319 | -10/Mines | Received a Rocket Launcher from a helpful Derelict 1727 | -10/Mines | Discovered new exit (range 5) 1776 | -10/Mines | Discovered new exit (range 12) 1949 | -10/Mines | Discovered new exit (range 5) 1955 | -10/Mines | Entered Exiles 1979 | -10/Exiles | Discovered new exit (range 15) 2018 | -10/Exiles | Met 8R-AWN 2040 | -10/Exiles | Met EX-HEX 2156 | -10/Exiles | Met EX-DEC 2184 | -10/Exiles | Visited The Gauntlet 2365 | -10/Exiles | Discovered new exit (range 14) 2478 | -10/Exiles | Met EX-BIN 2798 | -10/Exiles | Aligned with FarCom system 2800 | -10/Exiles | Given EX-Vault access code 2845 | -10/Exiles | Opened EX-Vault 2855 | -10/Exiles | Found Superbattery 2860 | -10/Exiles | Found Supersonic Drone Bay 2869 | -10/Exiles | Found XL Autogun Array 2908 | -10/Exiles | Warned to stay clear of 0b10 Research branches 3057 | -10/Exiles | Stole three prototypes: Superbattery, Supersonic Drone Bay, XL Autogun Array 3057 | -10/Exiles | Entered Mines 3066 | -9/Mines | Assembled infested the area 3130 | -9/Mines | Core integrity fell below 50% 3137 | -9/Mines | Core integrity fell below 20% 3145 | -9/Mines | Destroyed by D-53 Grenadier with Mini Grenade Launcher Last Messages --------------- 03105_ C-30 ARC bursts open, deploying its payload. 03105_ D-53 Grenadier unfolds itself. 03124_ Lgt. Treads severed. 03126_ YI-UF0 mumbles something. 03129_ as-38966 destroyed. 03129_ as-08155 destroyed. 03130_ Assault Rifle destroyed. 03130_ as-57531 destroyed. 03132_ YI-UF0 mumbles something. 03132_ as-38422 destroyed. 03133_ D-53 Grenadier destroyed. 03134_ The unstable cave ceiling collapses. 03134_ as-27960 destroyed. 03136_ The unstable cave ceiling collapses. 03140_ YI-UF0 mumbles something. 03140_ The unstable cave ceiling collapses. 03142_ YI-UF0 mumbles something. 03142_ The unstable cave ceiling collapses. 03143_ Lgt. Treads destroyed. 03145_ YI-UF0 mumbles something. Map ----- +----------------------------------------------------+ | | | | | | | | | | | | | | | | | | | | | | | | | | | | | | | ?????????????????????????????????????????????? | | ?????????????????????????????????????????????? | | ?????????????????????????????????????????????? | | ?????????????????????????????????????????????? | | ?????????????????????????????????????????????? | | ???????????????#####?###?????????????????????? | | ???????????##### ## ####?????????????????? | | ??????????## # # ##????????????????? | | ??????????# ######???????????? | | ????? #??## #???????????? | | ???? #! @ #???????????? | | ???? % # ### #???????????? | | ??? | g #????????????????? | | ??? % ##????????????????? | | ??? % = ###?????????????????? | | ??? #???????????????????? | | ??? ; d #???????????????????? | | ???? ### #???????????????????? | | ???? ?# #???????????????????? | | ????? ????# ### ???????????????????? | | ????????????# #?# # ???????????????????? | | ????????????# #?# #???????????????????? | | ????????????# #?#### #???????????????????? | | ????????????# #????#######???????????????????? | | ????????????# #??????????????????????????????? | | ????????????# #??????????????????????????????? | | ????????????# #??????????????????????????????? | | ????????????# ###???????????????????????????? | | ????????????# ####????????????????????????? | | ?????????#### ###??????????????????????? | | ????????## ????????????????? | | ???????## % # ????????????????? | | ???????# ! # ?# #######?????????????????? | | ???????# % ##??# #???????????????????????? | | ???????## = ##????####???????????????????????? | +----------------------------------------------------+ Best States ------------- Heat Dissipation 25 Energy Generation 14 Energy Capacity 265 Matter Stores 300 Matter Capacity 300 Sight Range 16 Terrain Scan Density 10 Armor Coverage 150 Evasion (%) 40 Recoil Reduction 2 Item Schematics ----------------- Hcp. Storage Unit | -10/Materials | Hacked Robot Schematics ------------------ None Fabricated ------------ Nothing Alien Tech Used ----------------- None Achievements -------------- None Challenges ------------ None Game ------ Seed HackingAutogunScanner Manual? 0 Play Time 00:16:08 Cumulative 113.9 hours Start 2021.01.05 @ 08:11:38 End 2021.01.05 @ 08:27:39 Sessions 2 Manual Loads 0 Difficulty Rogue Special Mode None Game No. 30 Rogue 30 Adventurer 0 Explorer 0 Win Type - Total 9 Types 5/1/1/1/1/0/0/0/0 Lore% 44 Gallery% 68 Achievement% 55 Wizard Run 0 Options --------- ASCII 0 Keyboard 0 Movement Numpad Keybinds 0 Fullscreen 1 Font 18/TerminusBold Map View 76x50 Tactical HUD 1 Map Filters NONE Filters NONE Steam 1 RUN: 61457410-1a83-4852-8c42-dc1ab6f39d0e